fUST/lending_fUST_20240130
["ID","MTS","AMOUNT","RATE_DAILY","PERIOD"]
[312981225,1706562644379,-500.0,0.00028799,2]
[312981227,1706562644390,-191.27669324,0.00028799,2]
[312981229,1706562644399,-500.0,0.00028799,2]
[312981231,1706562644408,-500.0,0.00028799,2]
[312981233,1706562644417,-500.0,0.00028799,2]
[312981235,1706562644429,-500.0,0.00028799,2]
[312981237,1706562644438,-334.31266282,0.00028799,2]
[312981239,1706562644447,-178.51915657,0.00028799,2]
[312981241,1706562644457,-1315.08265973,0.000288,3]
[312981243,1706562644465,-7486.67928675,0.000288,2]
[312981245,1706562644474,-1380.33304,0.000288,2]
[312981247,1706562644484,-1380.33304,0.000288,2]
[312981249,1706562644494,-1222.597576,0.000288,2]
[312981251,1706562644503,-1222.597576,0.000288,2]
[312981253,1706562644512,-155.0,0.00029,2]
[312981255,1706562644521,-1934.29515159,0.00029,2]
[312981257,1706562644531,-1000.0,0.00029,29]
[312981259,1706562644540,-16320.61699859,0.00029,4]
[312981261,1706562644549,-1380.33304,0.00029,2]
[312981263,1706562644560,-1380.33304,0.00029,2]
[312981265,1706562644569,-1222.597576,0.00029,2]
[312981267,1706562644577,-1222.597576,0.00029,2]
[312981269,1706562644587,-1500.0,0.00029,2]
[312981271,1706562644597,-150.0,0.00029287,2]
[312981273,1706562644606,-1000.0,0.000296,10]
[312981275,1706562644615,-1000.0,0.000297,10]
[312981277,1706562644624,-3000.0,0.000297,2]
[312981279,1706562644634,-175.50438309,0.00029725,2]
[312981281,1706562644644,-180.94314367,0.00029745,2]
[312981283,1706562644654,-309.80941338,0.00029746,2]
[312981285,1706562644663,-156.41621648,0.00029746,2]
[312981287,1706562644674,-292.21634462,0.00029746,2]
[312981289,1706562644683,-155.33940957,0.00029748,2]
[312981291,1706562644692,-5008.25819787,0.00029748,3]
[312981293,1706562644701,-155.19117755,0.00029748,7]
[312981295,1706562644710,-1380.33304,0.00029748,2]
[312981297,1706562644719,-1380.33304,0.00029748,2]
[312981299,1706562644728,-1222.597576,0.00029748,2]
[312981301,1706562644737,-1222.597576,0.00029748,2]
[312981303,1706562644747,-684.92926278,0.00029749,4]
[312981305,1706562644756,-437.21552464,0.00029749,7]
[312981307,1706562644765,-187.29361978,0.00029749,5]
[312981309,1706562644774,-1498.65324001,0.00029749,5]
[312981311,1706562644783,-2382.48737715,0.00029749,5]
[312981313,1706562644792,-756.93553514,0.00029749,5]
[312981314,1706562644801,-500.0,0.0002976,10]
[312981316,1706562644810,-500.0,0.0002978,10]
[312981318,1706562644819,-353.47,0.000298,7]
[312981320,1706562644828,-1000.0,0.000298,10]
[312981322,1706562644837,-500.0,0.000298,10]
[312981324,1706562644846,-500.0,0.0002982,10]
[312981326,1706562644855,-500.0,0.0002984,10]
[312981328,1706562644864,-500.0,0.0002986,10]
[312981330,1706562644873,-58755.85,0.0002987,3]
[312981332,1706562644882,-1380.33304,0.0002987,2]
[312981334,1706562644891,-1380.333037,0.0002987,2]
[312981336,1706562644899,-1222.597576,0.0002987,2]
[312981338,1706562644908,-1222.597584,0.0002987,2]
[312981340,1706562644917,-500.0,0.0002988,10]
[312981342,1706562644929,-2271.73958878,0.000299,2]
[312981344,1706562644938,-1000.0,0.000299,10]
[312981345,1706562644947,-500.0,0.000299,10]
[312981347,1706562644956,-33212.39688514,0.000299,2]
[312981349,1706562644965,-500.0,0.0002992,10]
[312981351,1706562644974,-500.0,0.0002994,10]
[312981353,1706562644983,-500.0,0.0002996,10]
[312981355,1706562644991,-500.0,0.0002998,10]
[312981357,1706562645001,-44426.21537031,0.00029992,4]
[312981359,1706562645010,-21660.838838,0.00029995,2]
[312981361,1706562645019,-21660.838838,0.00029995,2]
[312981363,1706562645028,-21660.838838,0.00029995,2]
[312981365,1706562645037,-21660.838838,0.00029995,2]
[312981367,1706562645045,-21660.838838,0.00029995,2]
[312981369,1706562645054,-489.5310894,0.00029999,2]
[312981371,1706562645064,-221.90235303,0.00029999,2]
[312981373,1706562645073,-500.0,0.00029999,2]
[312981375,1706562645082,-323.87396469,0.00029999,2]
[312981377,1706562645091,-443.21499068,0.00029999,2]
[312981379,1706562645101,-4772.09048546,0.0003,2]
[312981380,1706562645110,-244.44828906,0.0003,4]
[312981382,1706562645119,-309.87922767,0.0003,4]
[312981384,1706562645128,-155.18983568,0.0003,4]
[312981386,1706562645138,-2382.27704737,0.0003,2]
[312981388,1706562645147,-500.2899752,0.0003,5]
[312981390,1706562645157,-500.0,0.0003,10]
[312981392,1706562645167,-20414.61686386,0.0003,2]
[312981513,1706562646270,-628.869997,0.00023249,5]
[312981520,1706562646327,-168.59233465,0.00023249,5]
[312981522,1706562646336,-154.9690062,0.00023249,4]
[312981524,1706562646345,-31615.3589837,0.0003,2]
[312981526,1706562646356,-851.49034209,0.0003,2]
[312981528,1706562646367,-7477.57675235,0.0003,2]
[312982821,1706562659108,4179.62488041,0.00016,2]
[312982825,1706562659135,15000.0,0.00016,2]
[312982829,1706562659165,15000.0,0.00016,2]
[312982833,1706562659192,15000.0,0.00016,2]
[312982837,1706562659221,15000.0,0.00016,2]
[312982841,1706562659248,25000.0,0.00016,2]
[312982844,1706562659274,118474.14346303,0.00016,2]
[312984020,1706562995278,3685.45709627,0.00016,2]
[312984023,1706563620546,10224.1550076,0.00016,2]
[312984024,1706563623514,684.97913733,0.00016,2]
[312984025,1706563631893,154.9690062,0.00016,2]
[312984027,1706563635047,234.60895932,0.00016,2]
[312984028,1706563637216,535.7952849,0.00016,2]
[312984029,1706563638096,154.9690062,0.00015999,2]
[312984030,1706563639468,684.70048787,0.00016,2]
[312984031,1706563645472,154.9690062,0.000144,2]
[312984032,1706563646202,154.9690062,0.00016,2]
[312984033,1706563647882,156.15645777,0.00016,2]
[312984035,1706563653057,288.7574727,0.00016,2]
[312984036,1706563655199,535.7952849,0.00016,2]
[312984037,1706563661463,252.82315678,0.000144,2]
[312984038,1706563662195,154.9690062,0.00016,2]
[312984039,1706563663466,684.97913733,0.00016,2]
[312984040,1706563671208,535.7952849,0.00016,2]
[312984043,1706563679474,684.97913733,0.00016,2]
[312984044,1706563686214,154.9690062,0.00016,2]
[312984046,1706563689204,535.7952849,0.00016,2]
[312984047,1706563695484,684.97913733,0.00016,2]
[312984048,1706563704203,154.9690062,0.00016,2]
[312984049,1706563711215,291.08494018,0.00016,2]
[312984050,1706563715472,562.08910721,0.00016,2]
[312984051,1706563722213,154.9690062,0.00016,2]
[312984053,1706563748208,154.9690062,0.00016,2]
[312984055,1706563768325,275.00765541,0.00016,2]
[312984082,1706563832317,-154.9690062,0.00019992,2]
[312984084,1706563832327,-154.9690062,0.00019993,2]
[312984086,1706563832337,-124.2514876,0.00019994,2]
[312984135,1706563838419,-30.7175186,0.00019994,2]
[312984136,1706563838428,-562.24130719,0.00019995,2]
[312984137,1706563838438,-154.9690062,0.00019995,2]
[312984138,1706563838447,-4802.42753151,0.00019995,2]
[312984139,1706563838455,-468.01088195,0.0002,2]
[312984140,1706563838464,-300.0,0.0002,2]
[312984141,1706563838473,-1260.96531066,0.00023,2]
[312984142,1706563838482,-154.9690062,0.00023707,4]
[312984143,1706563838490,-1584.75089851,0.00023708,2]
[312984144,1706563838499,-159.414229,0.00024658,2]
[312984145,1706563838508,-1232.98999032,0.00025,2]
[312984146,1706563838519,-596.10842731,0.00025,2]
[312984147,1706563838528,-159.414229,0.00027006,2]
[312984148,1706563838537,-1500.0,0.00028,2]
[312984149,1706563838546,-182.91706643,0.00028498,2]
[312984150,1706563838556,-154.9690062,0.00028499,2]
[312984151,1706563838565,-672.79162171,0.000285,4]
[312984152,1706563838579,-3454.36488584,0.000285,4]
[312984153,1706563838591,-2358.61589664,0.000285,4]
[312984488,1706563841974,-2652.71844458,0.000285,4]
[312984490,1706563841987,-1265.6613873,0.000288,2]
[312984492,1706563841997,-155.41103427,0.00029,2]
[312984494,1706563842006,-155.0,0.00029,2]
[312984496,1706563842016,-1500.0,0.00029,2]
[312984498,1706563842025,-1934.29515159,0.00029097,2]
[312984500,1706563842034,-434.1895,0.00029098,5]
[312984502,1706563842043,-306.0,0.00029178,2]
[312984504,1706563842053,-199.4415769,0.00029315,2]
[312984506,1706563842062,-159.414229,0.00029354,2]
[312984507,1706563842071,-1067.91286251,0.00029989,3]
[312984570,1706563843442,-1055.95713749,0.00029989,3]
[312984571,1706563843451,-15584.14474927,0.00029998,2]
[312984573,1706563843460,-683.21762915,0.00029998,5]
[312984574,1706563843470,-249.18825792,0.00029998,2]
[312984575,1706563843479,-7966.81883748,0.00029998,2]
[312984576,1706563843488,-995.27318575,0.00029998,2]
[312984577,1706563843497,-155.25655737,0.00029998,2]
[312984578,1706563843506,-1294.67927842,0.00029998,2]
[312984579,1706563843515,-302.17444234,0.00029998,2]
[312984580,1706563843525,-155.01860223,0.00029998,2]
[312984581,1706563843534,-181.11768672,0.00029998,2]
[312984582,1706563843544,-329.79784935,0.00029998,2]
[312984583,1706563843553,-521.0,0.00029998,2]
[312984584,1706563843564,-155.47910082,0.00029998,2]
[312984585,1706563843573,-904.37484693,0.00029998,2]
[312984586,1706563843582,-335.64655251,0.00029998,2]
[312984587,1706563843591,-155.22112945,0.00029998,2]
[312984588,1706563843601,-155.01860223,0.00029998,2]
[312984589,1706563843610,-155.03973553,0.00029998,2]
[312984590,1706563843619,-2072.82232947,0.00029998,2]
[312984591,1706563843628,-4515.66758825,0.00029999,2]
[312984592,1706563843637,-1331.69123359,0.00029999,2]
[312984593,1706563843646,-203.81251809,0.00029999,2]
[312984594,1706563843655,-186.50212851,0.00029999,2]
[312984595,1706563843664,-500.0,0.00029999,2]
[312984596,1706563843673,-374.28998743,0.00029999,2]
[312984597,1706563843682,-500.0,0.00029999,2]
[312984598,1706563843692,-500.0,0.00029999,2]
[312984599,1706563843700,-256.10402125,0.00029999,2]
[312984600,1706563843710,-500.0,0.00029999,2]
[312984601,1706563843719,-500.0,0.00029999,2]
[312984603,1706563843729,-500.0,0.00029999,2]
[312984604,1706563843739,-500.0,0.00029999,2]
[312984605,1706563843749,-500.0,0.00029999,2]
[312984606,1706563843758,-500.0,0.00029999,2]
[312984607,1706563843767,-500.0,0.00029999,2]
[312984608,1706563843777,-500.0,0.00029999,2]
[312984609,1706563843786,-500.0,0.00029999,2]
[312984610,1706563843796,-500.0,0.00029999,2]
[312984611,1706563843805,-500.0,0.00029999,2]
[312984612,1706563843814,-500.0,0.00029999,2]
[312984613,1706563843823,-500.0,0.00029999,2]
[312984614,1706563843833,-500.0,0.00029999,2]
[312984615,1706563843841,-500.0,0.00029999,2]
[312984616,1706563843851,-500.0,0.00029999,2]
[312984617,1706563843860,-500.0,0.00029999,2]
[312984618,1706563843869,-500.0,0.00029999,2]
[312984619,1706563843879,-500.0,0.00029999,2]
[312984621,1706563843888,-500.0,0.00029999,2]
[312984622,1706563843897,-500.0,0.00029999,2]
[312984623,1706563843907,-500.0,0.00029999,2]
[312984624,1706563843921,-500.0,0.00029999,2]
[312984625,1706563843930,-500.0,0.00029999,2]
[312984626,1706563843940,-500.0,0.00029999,2]
[312984627,1706563843949,-500.0,0.00029999,2]
[312984628,1706563843958,-540.8190157,0.00029999,2]
[312984629,1706563843968,-500.0,0.00029999,2]
[312984630,1706563843977,-657.54132987,0.0003,3]
[312984631,1706563843987,-89869.20672135,0.0003,2]
[312984632,1706563843997,-27433.02746377,0.0003,2]
[312984633,1706563844007,-2212.88986339,0.0003,2]
[312984634,1706563844016,-5000.0,0.0003,2]
[312984635,1706563844026,-18619.19872406,0.0003,2]
[312984636,1706563844035,-701.10753865,0.0003,2]
[312984637,1706563844045,-2156.26758618,0.0003,2]
[312984638,1706563844055,-36396.0,0.0003,7]
[312984639,1706563844064,-214.51794808,0.0003,10]
[312984641,1706563844073,-2000.0,0.0003,2]
[312984642,1706563844083,-5000.0,0.0003,7]
[312984643,1706563844093,-131177.50609656,0.0003,4]
[312984644,1706563844309,-383.3948546,0.0003,4]
[312985222,1706565032690,-154.98450155,0.00020993,4]
[312985224,1706565032699,-153.50068831,0.00020994,2]
[312985226,1706565032708,-154.98450155,0.00021085,2]
[312985227,1706565032718,-4802.42753151,0.00021086,2]
[312985228,1706565032727,-1584.29146325,0.00021087,2]
[312985229,1706565032736,-4158.9534175,0.00021087,2]
[312985230,1706565032747,-16764.10745713,0.00021087,2]
[312985231,1706565032756,-169.523907,0.00021094,2]
[312985232,1706565032765,-166.666666,0.00021918,2]
[312985233,1706565032774,-2036.85139165,0.00022,2]
[312985234,1706565032785,-3973.56469819,0.00022,2]
[312985235,1706565032795,-155.75566433,0.00022266,2]
[312985236,1706565032805,-301.29047415,0.00022373,2]
[312985237,1706565032814,-166.666666,0.00022431,2]
[312985238,1706565032823,-166.666666,0.00022944,2]
[312985239,1706565032832,-1260.96531066,0.00023,2]
[312985240,1706565032842,-166.666666,0.00023456,2]
[312985241,1706565032851,-813.12301563,0.00023708,2]
[312985242,1706565032860,-662.97540178,0.00023708,2]
[312985243,1706565032870,-353.39949854,0.00023708,2]
[312985244,1706565032879,-166.666666,0.00023969,2]
[312985245,1706565032888,-166.666666,0.00024482,2]
[312985246,1706565032898,-184.784156,0.00024658,2]
[312985247,1706565032906,-280.0,0.00024658,2]
[312985248,1706565032915,-244.197801,0.00024884,2]
[312985249,1706565032924,-1829.09841763,0.00025,2]
[312985250,1706565032933,-4729.99614024,0.00025,2]
[312985251,1706565032943,-7653.30118371,0.00025,2]
[312985252,1706565032952,-167.633153,0.00025109,2]
[312985253,1706565032961,-184.784156,0.00026484,2]
[312985254,1706565032970,-155.02015262,0.00026998,2]
[312985255,1706565032980,-5041.53085792,0.000279,2]
[312985256,1706565032989,-201.01714481,0.000279,2]
[312985257,1706565032998,-201.01714481,0.000279,2]
[312985258,1706565033007,-154.98450155,0.00028,2]
[312985259,1706565033016,-1500.0,0.00028,2]
[312985260,1706565033025,-184.784156,0.00028311,2]
[312985261,1706565033033,-4938.93,0.00028477,3]
[312985262,1706565033043,-2670.5,0.00028487,3]
[312985263,1706565033052,-4900.89,0.00028487,3]
[312985264,1706565033061,-5926.72,0.00028487,3]
[312985265,1706565033070,-19715.74438324,0.00028497,2]
[312985266,1706565033079,-170.76709169,0.000285,4]
[312985267,1706565033088,-150.1,0.00028729,2]
[312985268,1706565033097,-155.0,0.00028998,2]
[312985269,1706565033106,-154.9690062,0.00029,2]
[312985270,1706565033115,-1934.29515159,0.00029,2]
[312985271,1706565033124,-1500.0,0.00029,2]
[312985272,1706565033134,-153.0,0.00029178,2]
[312985273,1706565033143,-153.0,0.00029315,2]
[312985274,1706565033152,-153.0,0.00029315,2]
[312985275,1706565033161,-199.5341538,0.00029315,2]
[312985276,1706565033170,-153.0,0.00029315,2]
[312985277,1706565033179,-153.2223878,0.00029315,2]
[312985278,1706565033188,-170.3168459,0.00029315,2]
[312985279,1706565033197,-153.4909777,0.00029315,2]
[312985280,1706565033206,-155.9195671,0.00029315,2]
[312985281,1706565033216,-153.0,0.00029315,2]
[312985282,1706565033225,-199.5341538,0.00029315,2]
[312985283,1706565033234,-153.0,0.00029315,2]
[312985284,1706565033243,-153.0,0.00029315,2]
[312985285,1706565033252,-153.0,0.00029315,2]
[312985286,1706565033262,-153.0,0.00029315,2]
[312985287,1706565033271,-153.0,0.00029315,2]
[312985288,1706565033281,-38.5719094,0.00029315,2]
[312985318,1706565038676,-114.4280906,0.00029315,2]
[312985320,1706565038685,-199.5341538,0.00029315,2]
[312985322,1706565038694,-199.5341538,0.00029315,2]
[312985324,1706565038703,-153.0,0.00029315,2]
[312985326,1706565038713,-153.0,0.00029315,2]
[312985328,1706565038723,-153.0,0.00029315,2]
[312985330,1706565038733,-153.0,0.00029315,2]
[312985332,1706565038742,-153.0,0.00029315,2]
[312985334,1706565038751,-153.0,0.00029315,2]
[312985336,1706565038762,-199.5341538,0.00029315,2]
[312985338,1706565038771,-199.5341538,0.00029315,2]
[312985340,1706565038780,-199.5341538,0.00029315,2]
[312985342,1706565038788,-153.0,0.00029315,2]
[312985344,1706565038797,-153.0,0.00029315,2]
[312985346,1706565038806,-153.0,0.00029315,2]
[312985348,1706565038815,-153.0,0.00029589,2]
[312985350,1706565038824,-153.0,0.00029589,2]
[312985352,1706565038833,-153.0,0.00029589,2]
[312985354,1706565038842,-155.55727703,0.00029896,2]
[312985356,1706565038852,-5004.84299326,0.00029896,2]
[312985357,1706565038861,-818.24868862,0.00029897,2]
[312985359,1706565038870,-7818.02905683,0.00029898,2]
[312985360,1706565038879,-1774.09643899,0.00029898,2]
[312985363,1706565038889,-2500.0,0.00029898,2]
[312985364,1706565038898,-303.81437787,0.00029898,2]
[312985367,1706565038907,-825.86473384,0.00029898,2]
[312985369,1706565038917,-1578.9733708,0.00029898,2]
[312985371,1706565038926,-5000.0,0.00029898,2]
[312985373,1706565038935,-464.82251865,0.00029898,20]
[312985375,1706565038944,-3238.32135489,0.00029899,2]
[312985377,1706565038953,-53984.44351322,0.000299,2]
[312985379,1706565038964,-28713.66401179,0.000299,2]
[312985381,1706565038974,-185.4518211,0.00029998,2]
[312985383,1706565038984,-561.56281089,0.00029998,2]
[312985385,1706565038992,-155.11934468,0.00029998,2]
[312985397,1706565039095,-155.63964198,0.00029998,2]
[312985399,1706565039105,-639.10324176,0.00029998,2]
[312985401,1706565039114,-155.02170304,0.00029998,2]
[312985403,1706565039123,-272.79145972,0.00029998,2]
[312985405,1706565039133,-155.02170304,0.00029998,2]
[312985407,1706565039141,-155.02170304,0.00029998,2]
[312985409,1706565039151,-679.3029243,0.00029998,2]
[312985411,1706565039159,-2075.77672297,0.00029998,2]
[312985413,1706565039168,-155.02015262,0.00029998,2]
[312985415,1706565039177,-155.02015262,0.00029998,2]
[312985417,1706565039186,-219.84796052,0.00029998,2]
[312985419,1706565039196,-1199.09633829,0.00029998,2]
[312985421,1706565039205,-471.05101678,0.00029998,2]
[312985423,1706565039214,-166.35364662,0.00029998,2]
[312985424,1706565039224,-155.02170304,0.00029998,2]
[312985426,1706565039234,-680.67452781,0.00029998,2]
[312985428,1706565039243,-851.06760342,0.00029998,2]
[312985430,1706565039253,-426.38170713,0.00029998,2]
[312985432,1706565039262,-500.0,0.00029998,2]
[312985434,1706565039272,-309.93335203,0.00029998,2]
[312985436,1706565039281,-155.02015262,0.00029998,2]
[312985438,1706565039294,-201.72387806,0.00029998,2]
[312985440,1706565039304,-617.10324162,0.00029998,2]
[312985442,1706565039313,-155.03409758,0.00029999,2]
[312985444,1706565039322,-6003.05899682,0.00029999,2]
[312985446,1706565039333,-4017.99473219,0.00029999,2]
[312985448,1706565039342,-9947.92180076,0.00029999,2]
[312985450,1706565039351,-481.99451089,0.0003,3]
[312985453,1706565039362,-14813.46514186,0.0003,4]
[312985454,1706565039374,-4886.82211381,0.0003,5]
[312985456,1706565039384,-6662.4645036,0.0003,14]
[312985458,1706565039393,-31000.0,0.0003,2]
[312985460,1706565039402,-1000.0,0.0003,2]
[312985462,1706565039411,-48928.01493803,0.0003,2]
[312985464,1706565039420,-503.07014157,0.0003,14]
[312985466,1706565039431,-167.1139885,0.0003,2]
[312985468,1706565039439,-424.38631572,0.0003,2]
[312985470,1706565039451,-24214.64908091,0.0003,2]
[312985473,1706565039463,-2551.0477514,0.0003,2]
[312985527,1706565041778,-4115.78,0.0002989,3]
[312985528,1706565041788,-3198.70557754,0.0003,2]
[312985529,1706565041798,-6208.47790813,0.0003,2]
[312985530,1706565041808,-2197.19420239,0.0003,2]
[312985531,1706565041818,-343.22502914,0.0003,2]
[312985532,1706565041827,-4589.13756759,0.0003,4]
[312985533,1706565041838,-10279.95,0.0003,4]
[312985545,1706565044869,-355.93999965,0.00022,2]
[312985751,1706566237853,-155.0,0.00021068,4]
[312985752,1706566237862,-160.068,0.00021069,2]
[312986537,1706566245866,-155.0,0.00021067,2]
[312986539,1706566245875,-7.565153,0.00021069,2]
[312986541,1706566245884,-166.666666,0.00021918,2]
[312986543,1706566245893,-4802.42753151,0.00021999,2]
[312986545,1706566245902,-1679.87397365,0.00022,2]
[312986547,1706566245912,-3196.26606373,0.00022,2]
[312986549,1706566245921,-5098.49268018,0.00022,2]
[312987850,1706567431985,-155.0,0.00018846,3]
[312987852,1706567431994,-284.565,0.00018847,2]
[312987854,1706567432006,-277.67630719,0.00018847,2]
[312987856,1706567432016,-155.0,0.00018848,2]
[312987858,1706567432026,-825.63470203,0.00018848,2]
[312987861,1706567432038,-324.21963533,0.00018848,2]
[312987863,1706567432049,-3652.57319415,0.00018848,2]
[312987864,1706567432058,-155.0,0.00018849,2]
[312987865,1706567432067,-24900.0,0.0001885,2]
[312987867,1706567432077,-1584.29146325,0.00019,2]
[312987869,1706567432091,-639.28847169,0.00019797,2]
[312987871,1706567432103,-152.82367298,0.00019799,2]
[312987873,1706567432118,-3845.87,0.00019838,3]
[312987875,1706567432126,-7009.16,0.00019847,3]
[312987877,1706567432136,-21703.07731623,0.00019857,2]
[312987879,1706567432145,-1503.6050481,0.00019899,2]
[312987881,1706567432154,-10422.64857188,0.000199,2]
[312987883,1706567432163,-169.097064,0.00019939,2]
[312987885,1706567432172,-1199.58942855,0.0002,2]
[312987887,1706567432181,-166.666666,0.00021918,2]
[312987889,1706567432190,-151.53182002,0.00021956,2]
[312987891,1706567432200,-378.53745413,0.00021998,5]
[312987893,1706567432210,-222.88030321,0.00021998,2]
[312987895,1706567432219,-178.61657737,0.00021998,2]
[312987897,1706567432229,-309.6854987,0.00021998,2]
[312987899,1706567432238,-602.9736358,0.00021998,2]
[312987901,1706567432247,-1243.37082882,0.00021998,2]
[312987903,1706567432256,-4817.36489966,0.00021998,2]
[312987905,1706567432265,-527.10191996,0.00021998,2]
[312987907,1706567432274,-1610.48559315,0.00021998,2]
[312987909,1706567432283,-5276.75269968,0.00021999,2]
[312987911,1706567432292,-7655.61622133,0.00022,2]
[312987960,1706567438053,-1113.65937027,0.00018847,2]
[312987963,1706567438068,-10503.89817271,0.00018847,2]
[312987967,1706567438112,-9305.50333165,0.00018847,2]
[312987969,1706567438124,-5840.97,0.00019847,3]
[312987971,1706567438136,-24672.41589157,0.00022,2]
[312987973,1706567438149,-300.0,0.00022,2]
[312987975,1706567438161,-2087.09739776,0.00022,2]
[312987977,1706567438171,-3973.56469819,0.00022,2]
[312987979,1706567438182,-2036.12411825,0.00022,2]
[312987981,1706567438195,-3196.26606373,0.00022,2]
[312987984,1706567438208,-426.52191671,0.00022,2]
[312987986,1706567438221,-166.666666,0.00022431,2]
[312987988,1706567438232,-166.666666,0.00022944,2]
[312987990,1706567438243,-1260.96531066,0.00023,2]
[312987992,1706567438255,-9947.92180076,0.00023,2]
[312987994,1706567438267,-166.666666,0.00023456,2]
[312987996,1706567438279,-166.666666,0.00023969,2]
[312987998,1706567438291,-4019.31124265,0.00024,2]
[312988000,1706567438304,-166.666666,0.00024482,2]
[312988002,1706567438316,-161.686136,0.00024658,2]
[312988004,1706567438329,-10422.64857188,0.000249,2]
[312988007,1706567438341,-1829.09841763,0.00025,2]
[312988009,1706567438353,-1570.55107672,0.00025,2]
[312988011,1706567438363,-851.40854634,0.00025,2]
[312988013,1706567438373,-7653.30118371,0.00025,2]
[312988015,1706567438384,-680.67452781,0.00025,2]
[312988017,1706567438395,-161.686136,0.00027006,2]
[312988019,1706567438408,-306.0,0.00027671,2]
[312988021,1706567438420,-306.0,0.00027671,2]
[312988023,1706567438430,-153.0,0.00027756,2]
[312988025,1706567438442,-153.0,0.00028356,2]
[312988027,1706567438452,-153.0,0.00028356,2]
[312988029,1706567438464,-199.5341538,0.00028356,2]
[312988031,1706567438475,-199.5341538,0.00028356,2]
[312988033,1706567438485,-153.0,0.00028356,2]
[312988035,1706567438496,-199.5341538,0.00028356,2]
[312988037,1706567438506,-398.5501474,0.00028356,2]
[312988039,1706567438517,-153.0,0.00028493,2]
[312988041,1706567438527,-164.486678,0.00028493,2]
[312988043,1706567438538,-153.0,0.00028493,2]
[312988045,1706567438549,-153.0,0.00028493,2]
[312988047,1706567438560,-155.0,0.00028999,2]
[312988049,1706567438571,-154.98450155,0.00029,2]
[312988051,1706567438582,-1934.29515159,0.00029,2]
[312988053,1706567438593,-153.0,0.00029315,2]
[312988055,1706567438604,-153.0,0.00029315,2]
[312988057,1706567438615,-411.4153483,0.00029315,2]
[312988059,1706567438626,-153.0,0.00029315,2]
[312988061,1706567438637,-153.0,0.00029315,2]
[312988063,1706567438648,-153.0,0.00029315,2]
[312988065,1706567438659,-153.0,0.00029315,2]
[312988068,1706567438670,-161.686136,0.00029354,2]
[312988070,1706567438681,-155.01860223,0.00029848,2]
[312988072,1706567438691,-3347.0,0.000299,2]
[312988074,1706567438703,-10422.64857188,0.000299,2]
[312988076,1706567438713,-471.21066683,0.00029998,2]
[312988078,1706567438725,-679.3029243,0.00029998,2]
[312988080,1706567438735,-208.36365799,0.00029999,2]
[312988082,1706567438747,-500.0,0.00029999,2]
[312988084,1706567438758,-500.0,0.00029999,2]
[312988086,1706567438768,-454.08190157,0.00029999,2]
[312988088,1706567438779,-17200.99707179,0.0003,4]
[312988090,1706567438790,-1000.0,0.0003,30]
[312988092,1706567438801,-5000.0,0.0003,3]
[312988094,1706567438812,-689.3907748,0.0003,4]
[312988096,1706567438823,-2442.0,0.0003,30]
[312988098,1706567438834,-375.21728723,0.0003,10]
[312988100,1706567438846,-6000.0,0.0003,2]
[312988102,1706567438856,-5902.6275144,0.0003,2]
[312988104,1706567438868,-244.56852508,0.0003,4]
[312988106,1706567438878,-231.87697338,0.0003,4]
[312988108,1706567438888,-3392.54123515,0.0003,2]
[312988110,1706567438897,-2643.13870452,0.0003,2]
[312988112,1706567438906,-455.040239,0.0003,4]
[312988113,1706567438916,-154.9690062,0.0003,4]
[312988126,1706567439046,-4772.52637635,0.0003,2]
[312988128,1706567439056,-537.57460764,0.0003,4]
[312988130,1706567439066,-797.41126986,0.0003,4]
[312988132,1706567439075,-166.28403095,0.0003,10]
[312988134,1706567439084,-1826.97153487,0.0003,2]
[312988136,1706567439093,-385.95055915,0.0003,20]
[312988138,1706567439101,-654.58212953,0.0003,4]